bitfinex-derivatives/quotes_SOLF0:USTF0_20250626
["timestamp","ask_amount","ask_price","bid_price","bid_amount"]
[1750921536407,3.42936651,144.88,144.86,6.9]
[1750921537403,35.14,144.91,144.83,5.79046651]
[1750921537708,3.42936651,144.93,144.85,3.42936651]
[1750921537898,3.42936651,144.93,144.86,39.7361]
[1750921538101,10.32626651,144.93,144.9,6.8979]
[1750921538708,6.8969,144.93,144.91,6.8976]
[1750921538912,10.32626651,144.93,144.91,6.8976]
[1750921539413,3.42936651,144.93,144.91,6.8976]
[1750921539714,10.32616651,144.93,144.91,6.8976]
[1750921540506,38.54936651,144.95,144.87,38.54936651]
[1750921540707,38.54936651,144.95,144.88,2.473]
[1750921541210,6.8967,144.94,144.91,6.8974]
[1750921541405,38.54936651,144.95,144.91,6.8974]
[1750921541806,6.8965,144.94,144.91,6.8974]
[1750921542008,6.8965,144.94,144.92,6.8971]
[1750921542408,45.44536651,144.95,144.88,2.473]
[1750921542605,38.54936651,144.95,144.88,2.473]
[1750921543115,3.42936651,144.95,144.88,2.473]
[1750921543614,10.32536651,144.95,144.92,6.897]
[1750921544112,3.42936651,144.95,144.88,2.473]
[1750921544815,3.42936651,144.95,144.91,6.8974]
[1750921545720,6.8963,144.94,144.91,6.8974]
[1750921546113,3.42936651,144.95,144.92,6.8972]
[1750921546308,3.42936651,144.95,144.88,2.473]
[1750921546814,10.32526651,144.95,144.88,2.473]
[1750921547014,35.12,144.98,144.88,5.90236651]
[1750921547209,3.42936651,144.97,144.88,5.90236651]
[1750921547411,6.8959,144.95,144.88,5.90236651]
[1750921547704,3.42936651,144.93,144.9,6.8979]
[1750921547909,3.42936651,144.93,144.88,2.473]
[1750921548415,3.42936651,144.93,144.9,6.8979]
[1750921548914,3.42936651,144.93,144.89,6.8984]
[1750921549308,3.42936651,144.91,144.87,35.12]
[1750921549712,3.42936651,144.89,144.87,35.12]
[1750921550202,3.42936651,144.89,144.88,6.8991]
[1750921550819,3.42936651,144.91,144.88,6.8991]
[1750921551216,10.32726651,144.91,144.88,6.8991]
[1750921552415,6.8982,144.9,144.88,6.8991]
[1750921552919,3.42936651,144.89,144.86,2.3547]
[1750921553116,3.42936651,144.89,144.82,4.6667]
[1750921553117,35.12,144.89,144.82,4.6667]
[1750921553316,3.42936651,144.87,144.82,4.6667]
[1750921553521,3.42936651,144.87,144.84,6.9009]
[1750921554020,10.32916651,144.87,144.84,6.9009]
[1750921554920,3.42936651,144.87,144.85,6.9004]
[1750921555112,3.42936651,144.88,144.82,4.6667]
[1750921555513,10.32866651,144.88,144.85,6.9005]
[1750921555822,3.42936651,144.88,144.82,4.6667]
[1750921556021,10.32976651,144.86,144.83,6.9014]
[1750921556225,3.42936651,144.86,144.82,2.3587]
[1750921556525,3.42936651,144.84,144.81,2.4742]
[1750921556718,10.33066651,144.84,144.81,9.3763]
[1750921557023,3.42936651,144.84,144.81,2.4742]
[1750921557225,3.42936651,144.84,144.82,6.9016]
[1750921558527,10.33036651,144.84,144.82,6.9016]
[1750921559023,10.33036651,144.84,144.81,9.3764]
[1750921559224,6.9015,144.83,144.81,6.9022]
[1750921559425,6.9015,144.83,144.79,35.12]
[1750921559722,6.9015,144.83,144.8,6.9028]
[1750921560125,6.9015,144.83,144.79,35.12]
[1750921560325,10.33086651,144.83,144.79,35.12]
[1750921561127,10.33086651,144.83,144.8,6.9028]
[1750921561529,10.33086651,144.83,144.79,35.12]
[1750921562329,10.33086651,144.83,144.8,6.9028]
[1750921562728,3.42936651,144.83,144.81,6.9024]
[1750921563336,10.33086651,144.83,144.81,6.9024]
[1750921564231,10.33086651,144.83,144.8,6.9026]
[1750921564428,10.33086651,144.83,144.79,35.12]
[1750921564930,10.33086651,144.83,144.8,6.9025]
[1750921565331,10.33086651,144.83,144.79,35.12]
[1750921565827,3.42936651,144.83,144.79,35.12]
[1750921566126,8.11336651,144.88,144.76,76.96046222]
[1750921566127,3.42936651,144.81,144.76,6.9048]
[1750921566316,3.42936651,144.77,144.71,4.739]
[1750921566520,3.42936651,144.75,144.71,4.739]
[1750921566719,10.33466651,144.75,144.71,4.739]
[1750921566921,3.42936651,144.75,144.71,4.739]
[1750921567328,3.42936651,144.73,144.68,2.3248]
[1750921567629,3.42936651,144.75,144.68,2.3248]
[1750921569434,3.42936651,144.78,144.76,6.9046]
[1750921569737,10.33336651,144.78,144.76,6.9046]
[1750921569941,3.42936651,144.78,144.72,4.7175]
[1750921570135,35.12,144.8,144.72,4.7175]
[1750921570336,3.42936651,144.78,144.72,4.7175]
[1750921571337,38.54936651,144.8,144.72,8.14686651]
[1750921571538,38.54936651,144.8,144.73,2.2457]
[1750921572139,45.45226651,144.8,144.78,6.9036]
[1750921572648,6.9034,144.79,144.77,6.9041]
[1750921572937,38.54936651,144.8,144.77,6.9041]
[1750921573540,45.45266651,144.8,144.78,6.9036]
[1750921573840,38.54936651,144.8,144.73,2.2457]
[1750921574541,3.42936651,144.8,144.73,2.2457]
[1750921575040,3.42936651,144.82,144.76,3.42936651]
[1750921575238,3.42936651,144.82,144.76,38.54936651]
[1750921575438,3.42936651,144.82,144.8,6.9026]
[1750921576142,3.42936651,144.82,144.8,6.9027]
[1750921576340,35.12,144.83,144.76,38.54936651]
[1750921576642,35.12,144.83,144.77,2.2669]
[1750921576835,6.9013,144.84,144.78,3.42936651]
[1750921577243,6.9013,144.84,144.81,6.9021]
[1750921577844,10.33016651,144.85,144.78,3.42936651]
[1750921578444,3.42936651,144.85,144.83,6.9012]
[1750921579147,10.33026651,144.85,144.83,6.9012]
[1750921579342,3.42936651,144.85,144.82,6.9017]
[1750921579647,10.33026651,144.85,144.82,6.9017]
[1750921579951,10.33026651,144.85,144.83,6.9014]
[1750921581948,35.12,144.87,144.79,13.8068]
[1750921582144,3.42936651,144.88,144.82,3.42936651]
[1750921582343,35.12,144.89,144.82,3.42936651]
[1750921582536,35.12,144.89,144.83,2.2676]
[1750921583142,6.8993,144.88,144.85,6.9002]
[1750921583649,6.8993,144.88,144.83,2.2676]
[1750921583851,35.12,144.89,144.86,6.8997]
[1750921584249,6.8991,144.88,144.86,6.8997]
[1750921584849,42.0188,144.89,144.87,6.8995]
[1750921585243,35.12,144.89,144.83,2.2676]
[1750921585449,3.42936651,144.92,144.89,6.8986]
[1750921585651,3.42936651,144.92,144.84,43.27146651]
[1750921586150,3.42936651,144.92,144.84,39.8421]
[1750921586350,3.42936651,144.92,144.84,43.27146651]
[1750921587251,10.32696651,144.92,144.84,43.27146651]
[1750921587752,42.0169,144.93,144.9,6.8978]
[1750921588657,6.8973,144.92,144.9,6.8978]
[1750921588953,6.8973,144.92,144.89,6.8984]
[1750921589550,6.8973,144.92,144.86,3.42936651]
[1750921590256,6.8973,144.92,144.9,6.8979]
[1750921590650,42.017,144.93,144.9,6.8979]
[1750921593056,6.897,144.93,144.9,6.8979]
[1750921593457,6.8973,144.92,144.9,6.8979]
[1750921593759,3.42936651,144.94,144.9,6.8979]
[1750921594260,6.897,144.93,144.86,3.42936651]
[1750921595067,6.897,144.93,144.9,6.8977]
[1750921595265,6.897,144.93,144.86,3.42936651]
[1750921595766,6.897,144.93,144.9,6.8977]
[1750921596064,6.897,144.93,144.86,3.42936651]
[1750921596269,6.897,144.93,144.9,6.8979]
[1750921597169,10.32636651,144.93,144.86,3.42936651]
[1750921597670,10.32636651,144.93,144.9,6.8977]
[1750921598475,10.32636651,144.93,144.91,6.8976]
[1750921599669,3.42936651,144.93,144.91,6.8976]
[1750921599974,3.42936651,144.94,144.92,6.8971]
[1750921600675,10.32586651,144.94,144.92,6.8971]
[1750921600873,3.42936651,144.94,144.91,6.8975]
[1750921601377,10.32596651,144.94,144.91,6.8975]
[1750921601673,3.42936651,144.94,144.9,6.8979]
[1750921601873,6.8971,144.93,144.9,6.8979]
[1750921602074,3.42936651,144.94,144.9,6.8979]
[1750921602277,3.42936651,144.92,144.9,6.8979]
[1750921602679,3.42936651,144.92,144.91,6.8977]
[1750921603269,6.897,144.93,144.91,6.8977]
[1750921603471,10.32586651,144.94,144.91,6.8977]
[1750921603877,6.8969,144.93,144.91,6.8977]
[1750921604979,6.8969,144.93,144.9,6.8979]
[1750921605682,6.8973,144.92,144.9,6.8979]
[1750921607080,3.42936651,144.92,144.88,35.12]
[1750921607275,3.42936651,144.92,144.85,38.54936651]
[1750921608279,3.42936651,144.92,144.88,6.8988]
[1750921608476,3.42936651,144.92,144.85,38.54936651]
[1750921609080,6.8979,144.91,144.85,38.54936651]
[1750921609983,6.8979,144.91,144.89,6.8983]
[1750921610173,3.42936651,144.92,144.85,38.54936651]
[1750921610174,10.32686651,144.92,144.85,38.54936651]
[1750921611284,6.8977,144.91,144.89,6.8984]
[1750921614785,10.32676651,144.92,144.9,6.8981]
[1750921615181,10.32676651,144.92,144.85,38.54936651]
[1750921615182,3.42936651,144.92,144.85,38.54936651]
[1750921615587,3.42936651,144.94,144.87,3.42936651]
[1750921615889,3.42936651,144.94,144.88,2.3472]
[1750921616194,6.8967,144.93,144.91,6.8974]
[1750921619587,5.99830732,144.95,144.9,35.12]
[1750921619793,14.64055785,145.0,144.9,35.12]
[1750921620089,6.8946,144.98,144.95,6.8955]
[1750921620282,5.99830732,144.99,144.95,6.8955]
[1750921620487,14.6437588,144.98,144.9,38.54936651]
[1750921620682,3.42936651,144.96,144.9,35.08]
[1750921621489,6.8966,144.94,144.91,6.8974]
[1750921622401,6.8966,144.94,144.92,6.8972]
[1750921623793,11.12636288,144.93,144.88,2.3472]
[1750921624002,3.42936651,144.91,144.88,2.3472]
[1750921625101,10.32726651,144.91,144.89,6.8984]
[1750921626203,3.42936651,144.91,144.89,6.8984]
[1750921627106,10.32706651,144.91,144.89,6.8984]
[1750921628504,3.42936651,144.91,144.89,6.8984]
[1750921629603,3.42936651,144.91,144.88,2.3472]
[1750921630105,3.42936651,144.91,144.89,6.8982]
[1750921630905,3.42936651,144.91,144.9,6.8982]
[1750921631107,14.59322103,144.91,144.9,6.8982]
[1750921632611,6.03515096,144.91,144.9,6.8982]
[1750921633107,6.8943,144.99,144.9,38.50936651]
[1750921633314,7.55750553,144.98,144.93,3.42936651]
[1750921633508,5.09953351,144.97,144.93,3.42936651]
[1750921633713,6.8943,144.99,144.96,6.8953]
[1750921634019,7.55310083,144.98,144.96,6.8953]
[1750921634312,5.09655075,144.97,144.95,6.8956]
[1750921634507,2.45574897,144.98,144.93,3.42936651]
[1750921634707,5.09488774,144.97,144.96,6.8949]
[1750921636312,10.32346651,144.99,144.96,6.8949]
[1750921636504,5.09673363,144.98,144.97,6.8948]
[1750921637513,11.99103363,144.98,144.96,6.8951]
[1750921637714,6.8943,144.98,144.96,6.8951]
[1750921638018,10.32346651,144.99,144.93,3.42936651]
[1750921638211,5.09532299,144.98,144.93,3.42936651]
[1750921638404,10.32346651,144.99,144.93,3.42936651]
[1750921638601,5.09410189,144.98,144.97,6.8948]
[1750921638804,10.32346651,144.99,144.97,6.8948]
[1750921640206,3.42936651,144.99,144.97,6.8948]
[1750921640406,40.93136651,145.03,144.95,3.42936651]
[1750921640613,5.1224317,145.02,144.95,3.42936651]
[1750921640914,43.39011179,145.03,144.95,3.42936651]
[1750921641116,12.01512733,145.02,144.99,6.8936]
[1750921641313,6.8927,145.02,144.95,3.42936651]
[1750921641819,6.8927,145.02,144.99,6.8936]
[1750921642217,6.893,145.01,144.95,3.42936651]
[1750921642522,6.893,145.01,144.98,6.894]
[1750921644920,6.8935,145.0,144.98,6.894]
[1750921645719,6.8939,144.99,144.96,6.8949]
[1750921648218,6.8944,144.98,144.96,6.8949]
[1750921648416,3.42936651,144.99,144.95,6.8955]
[1750921648620,3.42936651,144.99,144.94,35.06]
[1750921648917,6.8944,144.98,144.94,35.06]
[1750921649122,6.8944,144.98,144.96,6.8951]
[1750921649326,10.32346651,144.99,144.96,6.8951]
[1750921650415,6.8936,145.0,144.94,35.06]
[1750921651019,10.32256651,145.01,144.98,6.8941]
[1750921651413,10.32256651,145.01,144.94,35.06]
[1750921653427,10.32256651,145.01,144.99,6.8938]
[1750921655622,6.8936,145.0,144.98,6.8941]
[1750921656020,3.42936651,145.01,144.98,6.8941]
[1750921656220,10.32266651,145.01,144.98,6.8941]
[1750921656627,10.32266651,145.01,144.99,6.8938]
[1750921657518,6.8933,145.01,144.99,6.8938]
[1750921657726,10.32266651,145.01,144.98,6.8941]
[1750921658226,6.8936,145.0,144.98,6.8941]
[1750921658715,3.42936651,145.01,144.97,6.8945]
[1750921658918,6.8937,145.0,144.97,6.8945]
[1750921659418,6.8937,145.0,144.98,6.8943]
[1750921660528,11.10160791,145.02,144.94,35.06]
[1750921660529,3.42936651,144.99,144.94,35.06]
[1750921661031,6.8946,144.98,144.95,6.8954]
[1750921661426,3.42936651,144.99,144.94,35.06]
[1750921661629,6.8953,144.96,144.94,35.06]
[1750921661934,3.42936651,144.97,144.94,35.06]
[1750921662628,10.32456651,144.97,144.94,41.956]
[1750921663029,3.42936651,144.99,144.94,35.06]
[1750921663931,6.8941,144.99,144.96,6.8949]
[1750921664132,3.42936651,145.0,144.94,38.48936651]
[1750921664334,3.42936651,145.02,144.94,38.48936651]
[1750921664824,10.32206651,145.02,144.94,38.48936651]
[1750921666032,10.32206651,145.02,145.0,6.8934]
[1750921667929,10.32206651,145.02,144.99,6.8936]
[1750921668522,10.32206651,145.02,145.0,6.8933]
[1750921668935,10.32206651,145.02,144.94,35.06]
[1750921669130,10.32206651,145.02,144.99,6.8936]
[1750921670226,6.8929,145.01,144.99,6.8936]
[1750921673837,10.32196651,145.02,145.0,6.8933]
[1750921674036,10.32196651,145.02,144.94,38.48936651]
[1750921674441,6.8929,145.01,144.99,6.8936]
[1750921675540,6.8937,145.0,144.94,38.48936651]
[1750921678233,6.8937,145.0,144.98,6.8941]
[1750921678738,6.8931,145.01,144.99,6.8939]
[1750921678941,11.15413104,145.0,144.99,6.8939]
[1750921679441,11.15413104,145.0,144.98,6.8941]
[1750921679741,3.42936651,145.04,144.98,35.02]
[1750921679943,13.62149135,145.03,145.01,6.8928]
[1750921680145,11.15392136,145.02,145.01,6.8928]
[1750921681445,5.14040854,145.02,145.01,6.8928]
[1750921683148,8.48010711,145.05,145.04,6.8914]
[1750921683349,13.61805146,145.05,145.04,6.8914]
[1750921683542,20.50905146,145.05,144.99,2.3188]
[1750921683748,5.13794435,145.04,144.99,2.3188]
[1750921683948,6.891,145.05,144.99,2.3188]
[1750921684246,18.04184162,145.04,144.99,2.3188]
[1750921684447,6.8916,145.04,144.99,2.3188]
[1750921684844,34.96,145.08,145.04,6.8912]
[1750921685049,34.96,145.08,144.99,2.3188]
[1750921685050,13.61470857,145.07,145.0,3.42936651]
[1750921685250,7.60405057,145.06,145.0,3.42936651]
[1750921685438,6.00810077,145.07,145.0,3.42936651]
[1750921685641,7.60056419,145.06,145.0,3.42936651]
[1750921685842,6.00810077,145.07,145.0,3.42936651]
[1750921686049,7.60056902,145.06,145.0,3.42936651]
[1750921686247,6.8904,145.07,145.04,6.8912]
[1750921686452,5.13332054,145.06,145.0,3.42936651]
[1750921686655,6.8904,145.07,145.0,3.42936651]
[1750921686856,5.13331893,145.06,145.0,3.42936651]
[1750921687046,6.8904,145.07,145.0,3.42936651]
[1750921687242,5.13331732,145.06,145.0,3.42936651]
[1750921687453,38.38936651,145.12,145.04,3.42936651]
[1750921687754,13.61375829,145.11,145.04,38.38936651]
[1750921687951,7.59334675,145.1,145.04,34.96]
[1750921688148,7.59334675,145.09,145.04,34.96]
[1750921688348,6.8889,145.1,145.04,34.96]
[1750921688652,5.14453234,145.09,145.04,34.96]
[1750921688857,12.90881154,145.11,145.08,6.8892]
[1750921689061,7.61463686,145.1,145.08,6.8892]
[1750921689251,5.14453096,145.09,145.08,6.8892]
[1750921690354,2.46753424,145.11,145.07,6.8898]
[1750921690554,7.62923782,145.1,145.07,6.8898]
[1750921690754,6.8891,145.1,145.07,6.8898]
[1750921690951,2.46753424,145.1,145.05,3.42936651]
[1750921691149,5.16058325,145.11,145.05,3.42936651]
[1750921691350,5.16058325,145.11,145.04,41.8876]
[1750921691351,5.89495464,145.11,145.04,41.8876]
[1750921691556,3.42936651,145.11,145.04,45.31696651]
[1750921692061,6.8889,145.1,145.07,6.8897]
[1750921692756,2.46589342,145.13,145.04,6.9276]
[1750921692956,3.42936651,145.07,145.02,34.96]
[1750921693158,3.42936651,145.07,145.01,34.96]
[1750921693361,6.8908,145.06,145.03,6.8917]
[1750921693950,6.02769874,145.1,144.99,6.7813]
[1750921694156,3.42936651,145.03,144.96,34.96]
[1750921694356,3.42936651,145.03,144.97,34.96]
[1750921694658,10.32136651,145.03,144.97,34.96]
[1750921696053,6.8925,145.02,144.97,34.96]
[1750921696861,6.8925,145.02,145.0,6.8934]
[1750921698356,10.32156651,145.03,145.0,6.8934]
[1750921698768,10.32156651,145.03,144.97,34.96]
[1750921699668,10.32156651,145.03,145.0,6.8931]
[1750921701364,3.42936651,145.03,144.97,34.96]
[1750921701966,6.8933,145.01,144.98,6.8941]
[1750921702162,3.42936651,145.03,144.98,6.8941]
[1750921702368,8.559989,145.03,144.97,34.96]
[1750921702872,6.893,145.01,144.97,34.96]
[1750921703966,6.893,145.01,144.98,6.8942]
[1750921704165,10.32236651,145.01,144.98,6.8942]
[1750921704980,6.8921,145.03,144.97,34.96]
[1750921705270,5.889411,145.04,144.97,38.38936651]
[1750921705475,6.8922,145.03,145.01,6.8928]
[1750921705775,6.8922,145.03,144.97,34.96]
[1750921706169,3.42936651,145.04,144.97,34.96]
[1750921706671,6.8922,145.03,144.97,34.96]
[1750921707068,12.023414,145.04,145.01,6.8927]
[1750921707269,6.8918,145.04,144.98,2.3048]
[1750921707474,6.8918,145.04,144.98,4.6255]
[1750921707974,6.8918,145.04,145.01,6.8926]
[1750921708568,6.8918,145.04,144.98,4.6255]
[1750921708569,45.28076651,145.05,145.02,6.8924]
[1750921708871,3.42936651,145.05,144.98,8.05486651]
[1750921709274,3.42936651,145.05,145.03,6.8917]
[1750921709862,10.32046651,145.05,145.03,6.8917]
[1750921710771,6.8907,145.06,145.04,6.8915]
[1750921712272,6.8907,145.06,145.03,6.8917]
[1750921712577,34.96,145.08,145.0,3.42936651]
[1750921712767,5.13407858,145.07,145.01,37.2876]
[1750921712971,34.96,145.08,145.01,37.2876]
[1750921713277,5.13407857,145.07,145.05,6.8908]
[1750921713580,41.8498,145.08,145.05,6.8908]
[1750921713774,5.13406128,145.07,145.05,6.8908]
[1750921714078,41.8498,145.08,145.05,6.8908]
[1750921714278,5.13406128,145.07,145.05,6.8908]
[1750921714476,41.8498,145.08,145.05,6.8908]
[1750921714676,5.13410841,145.07,145.05,6.8908]
[1750921714883,41.8498,145.08,145.05,6.8908]
[1750921715178,5.13410841,145.07,145.05,6.8908]
[1750921715379,41.8498,145.08,145.05,6.8908]
[1750921715680,5.13422029,145.07,145.05,6.8908]
[1750921715877,41.8498,145.08,145.05,6.8908]
[1750921716073,5.13422029,145.07,145.05,6.8908]
[1750921716271,34.96,145.08,145.02,3.42936651]
[1750921716876,6.8894,145.09,145.07,6.8898]
[1750921717678,6.8897,145.08,145.06,6.8903]
[1750921718179,3.42936651,145.09,145.06,6.8903]
[1750921719575,6.8897,145.08,145.06,6.8903]
[1750921720275,3.42936651,145.09,145.03,2.3951]
[1750921720276,12.04077552,145.07,145.03,2.3951]
[1750921720575,6.8903,145.07,145.03,2.3951]
[1750921721275,6.8903,145.07,145.04,6.8911]
[1750921721681,3.42936651,145.09,145.04,6.8911]
[1750921721881,7.61602802,145.08,145.04,6.8911]
[1750921722075,3.42936651,145.09,145.04,6.8911]
[1750921722274,6.8903,145.07,145.04,6.8911]
[1750921722972,6.89,145.08,145.01,37.2876]
[1750921723178,5.15188969,145.07,145.02,3.42936651]
[1750921723477,9.46380234,145.1,145.02,3.42936651]
[1750921723678,6.89,145.08,145.05,6.8908]
[1750921724784,6.89,145.08,145.02,3.42936651]
[1750921725079,5.20421321,145.07,145.02,3.42936651]
[1750921725280,6.8894,145.09,145.02,3.42936651]
[1750921725480,7.68035816,145.08,145.02,3.42936651]
[1750921725684,6.8894,145.09,145.02,3.42936651]
[1750921725885,5.2036778,145.08,145.07,6.8898]
[1750921727981,5.2036778,145.08,145.06,6.8903]
[1750921728176,6.8894,145.09,145.06,6.8903]
[1750921728379,5.20335116,145.08,145.06,6.8903]
[1750921728682,6.8894,145.09,145.06,6.8903]
[1750921728878,5.20335116,145.08,145.06,6.8903]
[1750921729086,6.8896,145.08,145.06,6.8903]
[1750921729790,6.8896,145.08,145.05,6.8908]
[1750921729982,6.8896,145.08,145.02,3.42936651]
[1750921730688,9.46313056,145.1,145.05,6.8906]
[1750921730689,6.8901,145.07,145.05,6.8906]
[1750921731387,6.8898,145.08,145.06,6.8905]
[1750921731686,5.19766052,145.07,145.02,3.42936651]
[1750921731886,6.8901,145.07,145.05,6.8907]
[1750921732681,6.8901,145.07,145.04,6.8913]
[1750921732995,6.8901,145.07,145.02,3.42936651]
[1750921734291,6.8901,145.07,145.04,6.8911]
[1750921736090,3.42936651,145.08,145.03,6.8918]
[1750921736395,3.42936651,145.06,144.99,2.2693]
[1750921736579,6.8918,145.04,145.01,6.8927]
[1750921737194,3.42936651,145.04,144.99,2.2693]
[1750921737404,3.42936651,145.02,144.98,34.92]
[1750921737693,6.8936,145.0,144.95,37.2502]
[1750921737895,3.42936651,145.02,144.95,37.2502]
[1750921738388,6.8932,145.01,144.98,6.8941]
[1750921738789,3.42936651,145.02,144.98,6.8941]
[1750921739095,6.893,145.01,144.98,6.8941]
[1750921740188,6.8935,145.0,144.98,6.8941]
[1750921741099,6.8931,145.01,144.98,6.8941]
[1750921741408,34.92,145.03,144.95,37.2502]
[1750921741613,5.1741795,145.02,144.96,3.42936651]
[1750921741816,38.34936651,145.03,144.96,3.42936651]
[1750921742108,34.92,145.03,144.98,3.42936651]
[1750921742297,3.42936651,145.05,144.98,3.42936651]
[1750921742499,5.17327683,145.04,144.98,3.42936651]
[1750921742703,6.8916,145.04,144.98,3.42936651]
[1750921743009,3.42936651,145.05,145.02,6.8921]
[1750921743311,5.17325254,145.04,145.02,6.8921]
[1750921743506,3.42936651,145.05,145.02,6.8921]
[1750921743708,5.17345383,145.04,145.02,6.8921]
[1750921743906,6.8916,145.04,145.02,6.8921]
[1750921744313,3.42936651,145.05,145.02,6.8921]
[1750921744509,12.06506411,145.04,145.02,6.8921]
[1750921744709,3.42936651,145.05,145.01,6.8927]
[1750921744916,3.42936651,145.03,145.01,6.8927]
[1750921745106,3.42936651,145.03,144.95,37.2502]
[1750921745313,5.17464055,145.02,144.95,37.2502]
[1750921745506,3.42936651,145.03,144.95,37.2502]
[1750921745813,5.17433784,145.02,145.0,6.893]
[1750921746111,10.32156651,145.03,145.0,6.893]
[1750921746310,12.06655426,145.02,144.99,6.8937]
[1750921746515,6.8927,145.02,144.99,6.8937]
[1750921747513,6.893,145.01,144.99,6.8937]
[1750921747819,3.42936651,145.02,145.0,6.8934]
[1750921748008,2.46375805,145.03,144.96,3.42936651]
[1750921748312,3.42936651,145.04,145.01,6.8928]
[1750921748522,5.17352748,145.03,145.01,6.8928]
[1750921748810,3.42936651,145.04,145.01,6.8928]
[1750921749011,7.63905486,145.03,145.01,6.8928]
[1750921749198,3.42936651,145.04,145.01,6.8928]
[1750921749404,7.63969039,145.03,145.01,6.8928]
[1750921749709,6.8921,145.03,145.01,6.8928]
[1750921752214,3.42936651,145.04,145.0,6.8932]
[1750921752412,7.63906412,145.03,145.0,6.8932]
[1750921752716,5.17366022,145.02,145.0,6.8932]
[1750921752907,6.8927,145.02,145.0,6.8932]
[1750921754216,6.8929,145.01,144.99,6.8937]
[1750921754713,10.32206651,145.02,144.99,6.8937]
[1750921754911,3.42936651,145.02,144.98,6.8941]
[1750921755316,6.8933,145.01,144.95,37.2502]
[1750921756301,6.8933,145.01,144.98,6.894]
[1750921757214,6.8935,145.0,144.98,6.894]
[1750921757416,38.32936651,145.02,144.97,6.8946]
[1750921757606,10.32316651,145.0,144.97,6.8946]
[1750921757813,3.42936651,145.0,144.95,37.2502]
[1750921758011,6.8949,144.97,144.93,4.7499]
[1750921759016,6.8953,144.96,144.93,4.7499]
[1750921759404,6.895,144.97,144.93,4.7499]
[1750921759610,3.42936651,144.98,144.93,4.7499]
[1750921759804,3.42936651,144.98,144.96,6.895]
[1750921761507,10.32396651,144.98,144.96,6.895]
[1750921761713,5.15034242,145.0,144.94,3.42936651]
[1750921761914,34.9,145.02,144.96,3.42936651]
[1750921762108,34.9,145.02,144.96,38.32936651]
[1750921762308,34.9,145.02,145.0,6.8931]
[1750921764521,41.7925,145.02,145.0,6.8931]
[1750921764717,2.45811385,145.04,145.0,34.9]
[1750921765021,2.4344,145.1,145.0,34.9]
[1750921765022,3.42936651,145.06,145.0,34.9]
[1750921765216,10.32016651,145.06,145.03,6.8916]
[1750921766025,3.42936651,145.06,145.04,6.8915]
[1750921766623,10.32006651,145.06,145.04,6.8915]
[1750921767021,6.8907,145.06,145.04,6.8915]
[1750921767522,5.13327412,145.05,145.0,34.9]
[1750921767723,2.45817618,145.07,145.0,34.9]
[1750921767924,11.02119091,145.06,145.01,6.8926]
[1750921768124,6.8917,145.04,145.01,6.8926]
[1750921769728,6.8917,145.04,145.02,6.8924]
[1750921770317,9.34944097,145.05,145.02,6.8924]
[1750921770522,9.34944097,145.05,145.0,34.9]
[1750921770523,3.42116974,145.06,145.03,6.8919]
[1750921770917,3.42116974,145.06,145.0,34.9]
[1750921771231,7.60069902,145.05,145.0,34.9]
[1750921771529,6.8918,145.04,145.01,6.8925]
[1750921772819,3.42116974,145.04,144.96,5.78466974]
[1750921773018,35.14,145.05,144.97,35.14]
[1750921773019,3.42116974,145.02,144.97,35.14]
[1750921773530,10.31386974,145.02,144.99,6.8936]
[1750921774229,6.8931,145.01,144.99,6.8936]
[1750921774627,2.46652722,145.04,144.97,35.14]
[1750921774827,3.42116974,145.07,144.98,8.00206974]
[1750921775128,5.16085858,145.06,144.98,8.00206974]
[1750921775328,3.42116974,145.07,144.98,8.00206974]
[1750921775629,5.16162864,145.06,145.0,3.42116974]
[1750921775832,2.46606231,145.07,145.01,35.14]
[1750921776022,5.16157351,145.06,145.01,35.14]
[1750921776327,6.8906,145.06,145.03,6.8917]
[1750921776532,6.8906,145.06,145.01,35.14]
[1750921777625,6.8911,145.05,145.03,6.8917]
[1750921778522,6.8907,145.06,145.03,6.8917]